[Event "Titled Tuesday Blitz June 20 Late 2023"]
[White "Maksimovic, Bojan"]
[Black "brm72"]
[WhiteFideId "14408120"]
[WhiteElo "2457"]
[BlackElo "2575"]
[Result "1-0"]
[Round "5"]
[TimeControl "180+2"]
[Date "2023.06.20"]
[WhiteClock "0:00:34"]
[BlackClock "0:00:10"]
[Board "38"]

1. e4 {[%clk 0:03:00]}  c6 {[%clk 0:02:51]} 2. d4 {[%clk 0:03:00]}  d5 {[%clk 0:02:52]} 3. Nc3 {[%clk 0:03:00]}  dxe4 {[%clk 0:02:52]} 4. Nxe4 {[%clk 0:03:01]}  Nf6 {[%clk 0:02:52]} 5. Nxf6+ {[%clk 0:02:59]}  exf6 {[%clk 0:02:53]} 6. c3 {[%clk 0:03:00]}  Bd6 {[%clk 0:02:53]} 7. Bd3 {[%clk 0:03:00]}  O-O {[%clk 0:02:53]} 8. Qc2 {[%clk 0:03:01]}  Re8+ {[%clk 0:02:54]} 9. Ne2 {[%clk 0:03:01]}  h5 {[%clk 0:02:54]} 10. O-O {[%clk 0:03:02]}  Qc7 {[%clk 0:02:54]} 11. h3 {[%clk 0:03:01]}  Nd7 {[%clk 0:02:50]} 12. Ng3 {[%clk 0:02:55]}  c5 {[%clk 0:01:34]} 13. Nxh5 {[%clk 0:02:37]}  cxd4 {[%clk 0:01:30]} 14. cxd4 {[%clk 0:02:38]}  Nb6 {[%clk 0:01:21]} 15. Qxc7 {[%clk 0:02:36]}  Bxc7 {[%clk 0:01:21]} 16. Bf4 {[%clk 0:02:36]}  Bxf4 {[%clk 0:01:10]} 17. Nxf4 {[%clk 0:02:37]}  Rd8 {[%clk 0:01:10]} 18. Rfd1 {[%clk 0:02:37]}  g6 {[%clk 0:00:59]} 19. Be4 {[%clk 0:02:37]}  Kg7 {[%clk 0:00:56]} 20. Rac1 {[%clk 0:02:36]}  Rd6 {[%clk 0:00:44]} 21. d5 {[%clk 0:02:36]}  f5 {[%clk 0:00:42]} 22. Bf3 {[%clk 0:02:36]}  Bd7 {[%clk 0:00:41]} 23. h4 {[%clk 0:02:36]}  Rc8 {[%clk 0:00:39]} 24. g3 {[%clk 0:02:37]}  f6 {[%clk 0:00:36]} 25. Rxc8 {[%clk 0:02:37]}  Bxc8 {[%clk 0:00:37]} 26. b3 {[%clk 0:02:37]}  g5 {[%clk 0:00:35]} 27. hxg5 {[%clk 0:02:37]}  fxg5 {[%clk 0:00:36]} 28. Ne2 {[%clk 0:02:37]}  Kf6 {[%clk 0:00:34]} 29. Nc3 {[%clk 0:02:38]}  Bd7 {[%clk 0:00:33]} 30. a4 {[%clk 0:02:37]}  Nc8 {[%clk 0:00:29]} 31. Re1 {[%clk 0:02:30]}  Ne7 {[%clk 0:00:28]} 32. Kf1 {[%clk 0:02:30]}  a6 {[%clk 0:00:26]} 33. a5 {[%clk 0:02:26]}  Be8 {[%clk 0:00:25]} 34. b4 {[%clk 0:02:12]}  Bf7 {[%clk 0:00:26]} 35. Rd1 {[%clk 0:02:12]}  Ke5 {[%clk 0:00:25]} 36. Bg2 {[%clk 0:02:13]}  Nxd5 {[%clk 0:00:22]} 37. f4+ {[%clk 0:01:49]}  gxf4 {[%clk 0:00:22]} 38. Bxd5 {[%clk 0:01:02]}  Bxd5 {[%clk 0:00:20]} 39. gxf4+ {[%clk 0:01:03]}  Ke6 {[%clk 0:00:21]} 40. Kf2 {[%clk 0:01:03]}  Bc6 {[%clk 0:00:20]} 41. Rxd6+ {[%clk 0:01:01]}  Kxd6 {[%clk 0:00:21]} 42. Ke3 {[%clk 0:01:02]}  Bg2 {[%clk 0:00:18]} 43. Kd4 {[%clk 0:01:02]}  Bf3 {[%clk 0:00:18]} 44. Na4 {[%clk 0:01:02]}  Kc6 {[%clk 0:00:17]} 45. Nb6 {[%clk 0:00:58]}  Kb5 {[%clk 0:00:17]} 46. Kc3 {[%clk 0:00:58]}  Be4 {[%clk 0:00:15]} 47. Nc4 {[%clk 0:00:58]}  Kc6 {[%clk 0:00:14]} 48. Nd2 {[%clk 0:00:57]}  Bd5 {[%clk 0:00:14]} 49. Kd4 {[%clk 0:00:55]}  Bg2 {[%clk 0:00:12]} 50. Kc4 {[%clk 0:00:44]}  Bd5+ {[%clk 0:00:11]} 51. Kc3 {[%clk 0:00:44]}  Bg2 {[%clk 0:00:12]} 52. Nc4 {[%clk 0:00:43]}  Be4 {[%clk 0:00:11]} 53. Kd4 {[%clk 0:00:40]}  Bb1 {[%clk 0:00:07]} 54. Ke5 {[%clk 0:00:39]}  Kb5 {[%clk 0:00:07]} 55. Na3+ {[%clk 0:00:39]}  Kxb4 {[%clk 0:00:07]} 56. Nxb1 {[%clk 0:00:40]}  Kxa5 {[%clk 0:00:07]} 57. Kxf5 {[%clk 0:00:40]}  b5 {[%clk 0:00:08]} 58. Ke6 {[%clk 0:00:41]}  Kb4 {[%clk 0:00:09]} 59. f5 {[%clk 0:00:42]}  Kb3 {[%clk 0:00:10]} 60. f6 {[%clk 0:00:42]}  a5 {[%clk 0:00:11]} 61. f7 {[%clk 0:00:43]}  a4 {[%clk 0:00:11]} 62. f8=Q {[%clk 0:00:44]}  b4 {[%clk 0:00:12]} 63. Qf2 {[%clk 0:00:42]}  a3 {[%clk 0:00:13]} 64. Nd2+ {[%clk 0:00:40]}  Kb2 {[%clk 0:00:14]} 65. Qd4+ {[%clk 0:00:39]}  Kc2 {[%clk 0:00:11]} 66. Qxb4 {[%clk 0:00:38]}  a2 {[%clk 0:00:12]} 67. Qb3+ {[%clk 0:00:37]}  Kc1 {[%clk 0:00:10]} 68. Qxa2 {[%clk 0:00:34]} 1-0


[Site "https://www.chess.com"]

[Event "Titled Tuesday Blitz June 20 Late 2023"]
[White "De La Villa Garcia, Jesus Maria"]
[Black "Santos Ruiz, Miguel"]
[WhiteFideId "2200040"]
[BlackFideId "22291482"]
[WhiteElo "2555"]
[BlackElo "2499"]
[Result "1-0"]
[Round "5"]
[TimeControl "180+2"]
[Date "2023.06.20"]
[WhiteClock "0:01:12"]
[BlackClock "0:00:00"]
[Board "40"]

1. c4 {[%clk 0:03:00]}  c6 {[%clk 0:02:55]} 2. d4 {[%clk 0:03:00]}  d5 {[%clk 0:02:55]} 3. cxd5 {[%clk 0:03:01]}  cxd5 {[%clk 0:02:55]} 4. Bf4 {[%clk 0:03:01]}  Nc6 {[%clk 0:02:51]} 5. e3 {[%clk 0:03:02]}  e6 {[%clk 0:02:51]} 6. Nc3 {[%clk 0:03:02]}  Bd6 {[%clk 0:02:51]} 7. Bxd6 {[%clk 0:03:02]}  Qxd6 {[%clk 0:02:52]} 8. Bd3 {[%clk 0:03:01]}  Nge7 {[%clk 0:02:48]} 9. Nf3 {[%clk 0:02:59]}  O-O {[%clk 0:02:48]} 10. O-O {[%clk 0:03:00]}  Bd7 {[%clk 0:02:46]} 11. a3 {[%clk 0:02:58]}  Rfc8 {[%clk 0:02:40]} 12. Rc1 {[%clk 0:02:52]}  Na5 {[%clk 0:02:21]} 13. b4 {[%clk 0:02:51]}  Nc4 {[%clk 0:02:21]} 14. Bxc4 {[%clk 0:02:48]}  Rxc4 {[%clk 0:02:15]} 15. Ne5 {[%clk 0:02:47]}  Rc7 {[%clk 0:02:11]} 16. Qb3 {[%clk 0:02:31]}  Be8 {[%clk 0:02:02]} 17. Rc2 {[%clk 0:02:29]}  Rac8 {[%clk 0:01:52]} 18. Rfc1 {[%clk 0:02:28]}  b6 {[%clk 0:01:32]} 19. h3 {[%clk 0:02:25]}  f6 {[%clk 0:01:24]} 20. Nd3 {[%clk 0:02:20]}  Qd7 {[%clk 0:01:14]} 21. Ne2 {[%clk 0:02:16]}  g5 {[%clk 0:00:56]} 22. Rxc7 {[%clk 0:02:09]}  Rxc7 {[%clk 0:00:56]} 23. Rxc7 {[%clk 0:02:10]}  Qxc7 {[%clk 0:00:57]} 24. Qc3 {[%clk 0:02:10]}  Qc4 {[%clk 0:00:43]} 25. Qd2 {[%clk 0:02:01]}  Bb5 {[%clk 0:00:41]} 26. Nec1 {[%clk 0:02:00]}  Kf7 {[%clk 0:00:39]} 27. Nb2 {[%clk 0:01:58]}  Qc6 {[%clk 0:00:34]} 28. Na2 {[%clk 0:01:49]}  Nf5 {[%clk 0:00:21]} 29. Nc3 {[%clk 0:01:48]}  Ba6 {[%clk 0:00:20]} 30. a4 {[%clk 0:01:46]}  Qd6 {[%clk 0:00:20]} 31. b5 {[%clk 0:01:41]}  Bb7 {[%clk 0:00:20]} 32. Nd3 {[%clk 0:01:42]}  h5 {[%clk 0:00:18]} 33. Qa2 {[%clk 0:01:36]}  Qc7 {[%clk 0:00:16]} 34. Qb2 {[%clk 0:01:32]}  Nd6 {[%clk 0:00:15]} 35. Ne2 {[%clk 0:01:27]}  a5 {[%clk 0:00:14]} 36. f4 {[%clk 0:01:21]}  g4 {[%clk 0:00:12]} 37. hxg4 {[%clk 0:01:21]}  hxg4 {[%clk 0:00:13]} 38. Ng3 {[%clk 0:01:22]}  Qc4 {[%clk 0:00:13]} 39. Qa3 {[%clk 0:01:19]}  Nc8 {[%clk 0:00:06]} 40. Nf2 {[%clk 0:01:13]}  f5 {[%clk 0:00:04]} 41. Nd3 {[%clk 0:01:13]}  Qc7 {[%clk 0:00:03]} 42. Ne5+ {[%clk 0:01:13]}  Kg7 {[%clk 0:00:02]} 43. Nh5+ {[%clk 0:01:13]}  Kg8 {[%clk 0:00:00]} 44. Nf6+ {[%clk 0:01:12]} 1-0


[Site "https://www.chess.com"]

[Event "Titled Tuesday Blitz June 20 Late 2023"]
[White "Krsnik Cohar, Ivan Vihor"]
[Black "Mahdavi, Reza"]
[WhiteFideId "14520044"]
[BlackFideId "12595926"]
[WhiteElo "2414"]
[BlackElo "2395"]
[Result "0-1"]
[Round "5"]
[TimeControl "180+2"]
[Date "2023.06.20"]
[WhiteClock "0:00:02"]
[BlackClock "0:00:16"]
[Board "42"]

1. e4 {[%clk 0:02:57]}  c5 {[%clk 0:03:00]} 2. Ne2 {[%clk 0:02:57]}  d6 {[%clk 0:02:59]} 3. g3 {[%clk 0:02:57]}  Nf6 {[%clk 0:02:59]} 4. Bg2 {[%clk 0:02:58]}  g6 {[%clk 0:03:00]} 5. c3 {[%clk 0:02:58]}  Nc6 {[%clk 0:02:57]} 6. d4 {[%clk 0:02:59]}  cxd4 {[%clk 0:02:54]} 7. cxd4 {[%clk 0:02:59]}  Bg7 {[%clk 0:02:49]} 8. Nbc3 {[%clk 0:03:00]}  O-O {[%clk 0:02:49]} 9. h3 {[%clk 0:03:00]}  Bd7 {[%clk 0:02:47]} 10. Be3 {[%clk 0:03:00]}  a6 {[%clk 0:02:43]} 11. Qd2 {[%clk 0:03:00]}  b5 {[%clk 0:02:43]} 12. O-O {[%clk 0:02:59]}  b4 {[%clk 0:02:44]} 13. Nd5 {[%clk 0:02:42]}  Nxd5 {[%clk 0:02:37]} 14. exd5 {[%clk 0:02:41]}  Na5 {[%clk 0:02:33]} 15. Qxb4 {[%clk 0:02:31]}  Rb8 {[%clk 0:02:32]} 16. Qc3 {[%clk 0:02:30]}  Rc8 {[%clk 0:02:28]} 17. Qa3 {[%clk 0:02:11]}  Nc4 {[%clk 0:02:27]} 18. Qxa6 {[%clk 0:02:08]}  Nxe3 {[%clk 0:02:20]} 19. fxe3 {[%clk 0:02:08]}  Rc2 {[%clk 0:02:21]} 20. b3 {[%clk 0:01:30]}  Qb8 {[%clk 0:02:20]} 21. Qd3 {[%clk 0:01:29]}  Rfc8 {[%clk 0:02:20]} 22. Rfc1 {[%clk 0:01:29]}  Bb5 {[%clk 0:01:24]} 23. Qxc2 {[%clk 0:01:29]}  Rxc2 {[%clk 0:01:24]} 24. Rxc2 {[%clk 0:01:29]}  Bh6 {[%clk 0:01:24]} 25. Nf4 {[%clk 0:01:11]}  Bd7 {[%clk 0:01:15]} 26. Kh2 {[%clk 0:00:35]}  Bg5 {[%clk 0:01:10]} 27. Rac1 {[%clk 0:00:34]}  h5 {[%clk 0:00:59]} 28. Rc7 {[%clk 0:00:33]}  Bf5 {[%clk 0:00:59]} 29. e4 {[%clk 0:00:32]}  h4 {[%clk 0:00:59]} 30. exf5 {[%clk 0:00:31]}  hxg3+ {[%clk 0:01:00]} 31. Kxg3 {[%clk 0:00:31]}  Qb4 {[%clk 0:00:57]} 32. fxg6 {[%clk 0:00:21]}  Qxd4 {[%clk 0:00:54]} 33. gxf7+ {[%clk 0:00:20]}  Kxf7 {[%clk 0:00:53]} 34. Rf1 {[%clk 0:00:16]}  Qe3+ {[%clk 0:00:47]} 35. Kg4 {[%clk 0:00:16]}  Bf6 {[%clk 0:00:44]} 36. Rc4 {[%clk 0:00:10]}  Qe5 {[%clk 0:00:38]} 37. Ne6 {[%clk 0:00:05]}  Qe2+ {[%clk 0:00:38]} 38. Kg3 {[%clk 0:00:04]}  Kg6 {[%clk 0:00:34]} 39. Rg4+ {[%clk 0:00:04]}  Kh6 {[%clk 0:00:34]} 40. Rf5 {[%clk 0:00:02]}  Be5+ {[%clk 0:00:32]} 41. Rxe5 {[%clk 0:00:02]}  dxe5 {[%clk 0:00:28]} 42. Rh4+ {[%clk 0:00:01]}  Kg6 {[%clk 0:00:26]} 43. Be4+ {[%clk 0:00:02]}  Kf7 {[%clk 0:00:23]} 44. Rh7+ {[%clk 0:00:02]}  Kg8 {[%clk 0:00:20]} 45. Rg7+ {[%clk 0:00:02]}  Kh8 {[%clk 0:00:20]} 46. Rh7+ {[%clk 0:00:01]}  Kg8 {[%clk 0:00:19]} 47. Rg7+ {[%clk 0:00:02]}  Kh8 {[%clk 0:00:19]} 48. Bf3 {[%clk 0:00:02]}  Qe1+ {[%clk 0:00:18]} 49. Kg2 {[%clk 0:00:02]}  Qd2+ {[%clk 0:00:17]} 50. Kg3 {[%clk 0:00:02]}  Qe1+ {[%clk 0:00:14]} 51. Kg2 {[%clk 0:00:02]}  e4 {[%clk 0:00:15]} 52. Bg4 {[%clk 0:00:02]}  Qd2+ {[%clk 0:00:15]} 53. Kg3 {[%clk 0:00:03]}  e3 {[%clk 0:00:16]} 54. Rxe7 {[%clk 0:00:02]}  Qf2# {[%clk 0:00:16]} 0-1


[Site "https://www.chess.com"]

[Event "Titled Tuesday Blitz June 20 Late 2023"]
[White "Oro, Faustino"]
[Black "Keleberda, Tymur"]
[WhiteFideId "20000197"]
[BlackFideId "14174294"]
[WhiteElo "1984"]
[BlackElo "2198"]
[Result "0-1"]
[Round "5"]
[TimeControl "180+2"]
[Date "2023.06.20"]
[WhiteClock "0:00:00"]
[BlackClock "0:00:15"]
[Board "43"]

1. e4 {[%clk 0:03:00]}  c5 {[%clk 0:03:00]} 2. Nf3 {[%clk 0:03:00]}  d6 {[%clk 0:03:00]} 3. d4 {[%clk 0:02:57]}  cxd4 {[%clk 0:03:01]} 4. Nxd4 {[%clk 0:02:58]}  Nf6 {[%clk 0:03:01]} 5. Nc3 {[%clk 0:02:58]}  a6 {[%clk 0:03:02]} 6. Be2 {[%clk 0:02:57]}  e5 {[%clk 0:03:03]} 7. Nb3 {[%clk 0:02:56]}  Be7 {[%clk 0:03:03]} 8. O-O {[%clk 0:02:57]}  O-O {[%clk 0:03:03]} 9. Be3 {[%clk 0:02:49]}  Be6 {[%clk 0:03:01]} 10. Qd3 {[%clk 0:02:48]}  Nbd7 {[%clk 0:03:00]} 11. Nd5 {[%clk 0:02:48]}  Bxd5 {[%clk 0:02:56]} 12. exd5 {[%clk 0:02:48]}  b6 {[%clk 0:02:50]} 13. c4 {[%clk 0:02:47]}  Ne8 {[%clk 0:02:50]} 14. Rad1 {[%clk 0:02:40]}  g6 {[%clk 0:02:34]} 15. f4 {[%clk 0:02:34]}  Ng7 {[%clk 0:02:34]} 16. fxe5 {[%clk 0:02:10]}  Nxe5 {[%clk 0:02:35]} 17. Qd2 {[%clk 0:02:05]}  a5 {[%clk 0:02:31]} 18. Nd4 {[%clk 0:02:05]}  Rc8 {[%clk 0:02:26]} 19. b3 {[%clk 0:02:05]}  a4 {[%clk 0:02:00]} 20. Bf4 {[%clk 0:02:01]}  axb3 {[%clk 0:01:59]} 21. axb3 {[%clk 0:02:02]}  Bf6 {[%clk 0:01:50]} 22. Rde1 {[%clk 0:01:51]}  Re8 {[%clk 0:01:48]} 23. Kh1 {[%clk 0:01:49]}  Bh4 {[%clk 0:01:42]} 24. Ra1 {[%clk 0:01:45]}  Qd7 {[%clk 0:01:35]} 25. Bxe5 {[%clk 0:01:30]}  dxe5 {[%clk 0:01:31]} 26. Nb5 {[%clk 0:01:30]}  h5 {[%clk 0:01:17]} 27. Ra7 {[%clk 0:01:24]}  Qd8 {[%clk 0:01:09]} 28. Rfxf7 {[%clk 0:01:22]}  Nf5 {[%clk 0:01:05]} 29. Bxh5 {[%clk 0:01:06]}  Qg5 {[%clk 0:01:00]} 30. Qxg5 {[%clk 0:01:04]}  Bxg5 {[%clk 0:01:01]} 31. Bxg6 {[%clk 0:01:05]}  Ne7 {[%clk 0:00:52]} 32. Nd6 {[%clk 0:00:56]}  Ra8 {[%clk 0:00:50]} 33. Rxa8 {[%clk 0:00:25]}  Rxa8 {[%clk 0:00:51]} 34. Bd3 {[%clk 0:00:25]}  e4 {[%clk 0:00:41]} 35. Be2 {[%clk 0:00:23]}  Ra2 {[%clk 0:00:40]} 36. h4 {[%clk 0:00:17]}  Bxh4 {[%clk 0:00:33]} 37. Bg4 {[%clk 0:00:16]}  Bg3 {[%clk 0:00:32]} 38. Be6 {[%clk 0:00:05]}  Kh8 {[%clk 0:00:20]} 39. Rf8+ {[%clk 0:00:05]}  Kh7 {[%clk 0:00:20]} 40. Rf7+ {[%clk 0:00:02]}  Kg6 {[%clk 0:00:20]} 41. Rf1 {[%clk 0:00:02]}  Bxd6 {[%clk 0:00:20]} 42. g4 {[%clk 0:00:02]}  e3 {[%clk 0:00:20]} 43. Re1 {[%clk 0:00:02]}  Bc5 {[%clk 0:00:20]} 44. d6 {[%clk 0:00:02]}  Bxd6 {[%clk 0:00:20]} 45. Rxe3 {[%clk 0:00:02]}  Bc5 {[%clk 0:00:19]} 46. Rd3 {[%clk 0:00:02]}  Kg5 {[%clk 0:00:18]} 47. Bd7 {[%clk 0:00:03]}  Kf4 {[%clk 0:00:18]} 48. Rd1 {[%clk 0:00:01]}  Ng6 {[%clk 0:00:17]} 49. Bc6 {[%clk 0:00:00]}  Ne5 {[%clk 0:00:15]} 0-1


[Site "https://www.chess.com"]

[Event "Titled Tuesday Blitz June 20 Late 2023"]
[White "Darini, Pouria"]
[Black "Ismagilov, Damir"]
[WhiteFideId "12502200"]
[BlackFideId "34199982"]
[WhiteElo "2482"]
[BlackElo "2104"]
[Result "0-1"]
[Round "5"]
[TimeControl "180+2"]
[Date "2023.06.20"]
[WhiteClock "0:00:00"]
[BlackClock "0:00:30"]
[Board "44"]

1. b3 {[%clk 0:03:00]}  Nf6 {[%clk 0:02:57]} 2. Bb2 {[%clk 0:03:01]}  g6 {[%clk 0:02:55]} 3. Nf3 {[%clk 0:03:02]}  Bg7 {[%clk 0:02:54]} 4. e3 {[%clk 0:03:03]}  O-O {[%clk 0:02:54]} 5. Be2 {[%clk 0:03:04]}  b6 {[%clk 0:02:49]} 6. O-O {[%clk 0:03:03]}  Bb7 {[%clk 0:02:49]} 7. a4 {[%clk 0:03:04]}  a6 {[%clk 0:02:48]} 8. d3 {[%clk 0:03:04]}  d6 {[%clk 0:02:45]} 9. d4 {[%clk 0:03:03]}  Nbd7 {[%clk 0:02:40]} 10. a5 {[%clk 0:03:03]}  b5 {[%clk 0:02:38]} 11. c4 {[%clk 0:03:04]}  bxc4 {[%clk 0:02:30]} 12. bxc4 {[%clk 0:03:05]}  Re8 {[%clk 0:02:20]} 13. Nbd2 {[%clk 0:02:46]}  Rb8 {[%clk 0:02:19]} 14. Bc3 {[%clk 0:02:37]}  e5 {[%clk 0:02:14]} 15. d5 {[%clk 0:02:30]}  Nc5 {[%clk 0:02:01]} 16. Qc2 {[%clk 0:02:20]}  Bc8 {[%clk 0:01:55]} 17. e4 {[%clk 0:02:15]}  Nh5 {[%clk 0:01:48]} 18. Rfb1 {[%clk 0:01:56]}  Bd7 {[%clk 0:01:34]} 19. Rxb8 {[%clk 0:01:52]}  Qxb8 {[%clk 0:01:35]} 20. Rb1 {[%clk 0:01:37]}  Qa8 {[%clk 0:01:34]} 21. Bb4 {[%clk 0:01:19]}  Qa7 {[%clk 0:01:32]} 22. Ba3 {[%clk 0:01:05]}  f5 {[%clk 0:01:30]} 23. Re1 {[%clk 0:00:41]}  Nxe4 {[%clk 0:01:15]} 24. Nxe4 {[%clk 0:00:39]}  fxe4 {[%clk 0:01:16]} 25. Qxe4 {[%clk 0:00:30]}  Nf4 {[%clk 0:01:14]} 26. Bf1 {[%clk 0:00:27]}  Bf5 {[%clk 0:01:13]} 27. Qe3 {[%clk 0:00:28]}  Qxe3 {[%clk 0:01:00]} 28. fxe3 {[%clk 0:00:28]}  Nd3 {[%clk 0:01:00]} 29. Rd1 {[%clk 0:00:20]}  e4 {[%clk 0:01:00]} 30. Nd4 {[%clk 0:00:20]}  Bxd4 {[%clk 0:00:59]} 31. exd4 {[%clk 0:00:21]}  Rb8 {[%clk 0:00:46]} 32. g4 {[%clk 0:00:09]}  Bxg4 {[%clk 0:00:45]} 33. Rd2 {[%clk 0:00:07]}  Rb3 {[%clk 0:00:44]} 34. Ra2 {[%clk 0:00:07]}  e3 {[%clk 0:00:42]} 35. Bxd3 {[%clk 0:00:06]}  Rxd3 {[%clk 0:00:43]} 36. Bb4 {[%clk 0:00:03]}  Rd1+ {[%clk 0:00:37]} 37. Kg2 {[%clk 0:00:03]}  e2 {[%clk 0:00:37]} 38. h3 {[%clk 0:00:01]}  Bh5 {[%clk 0:00:36]} 39. Kf2 {[%clk 0:00:02]}  Rf1+ {[%clk 0:00:35]} 40. Kg3 {[%clk 0:00:02]}  e1=Q+ {[%clk 0:00:36]} 41. Bxe1 {[%clk 0:00:03]}  Rxe1 {[%clk 0:00:37]} 42. Rb2 {[%clk 0:00:03]}  Re3+ {[%clk 0:00:34]} 43. Kf4 {[%clk 0:00:03]}  Rc3 {[%clk 0:00:33]} 44. Rb7 {[%clk 0:00:01]}  Rxc4 {[%clk 0:00:32]} 45. Kg5 {[%clk 0:00:00]}  Kg7 {[%clk 0:00:30]} 0-1


[Site "https://www.chess.com"]

[Event "Titled Tuesday Blitz June 20 Late 2023"]
[White "Cuenca Jimenez, Jose Fernando"]
[Black "Czerw, Dawid"]
[WhiteFideId "2255570"]
[BlackFideId "1145746"]
[WhiteElo "2418"]
[BlackElo "2144"]
[Result "1-0"]
[Round "5"]
[TimeControl "180+2"]
[Date "2023.06.20"]
[WhiteClock "0:00:44"]
[BlackClock "0:00:06"]
[Board "46"]

1. c4 {[%clk 0:03:00]}  Nf6 {[%clk 0:02:58]} 2. Nc3 {[%clk 0:03:00]}  g6 {[%clk 0:02:58]} 3. e4 {[%clk 0:03:00]}  d6 {[%clk 0:02:58]} 4. d4 {[%clk 0:03:00]}  Bg7 {[%clk 0:02:58]} 5. h3 {[%clk 0:03:01]}  O-O {[%clk 0:02:56]} 6. Be3 {[%clk 0:03:01]}  e5 {[%clk 0:02:45]} 7. d5 {[%clk 0:03:02]}  Na6 {[%clk 0:02:43]} 8. g4 {[%clk 0:03:02]}  Nc5 {[%clk 0:02:42]} 9. f3 {[%clk 0:03:02]}  a5 {[%clk 0:02:38]} 10. Qd2 {[%clk 0:03:03]}  a4 {[%clk 0:02:36]} 11. O-O-O {[%clk 0:02:57]}  Nfd7 {[%clk 0:02:15]} 12. h4 {[%clk 0:02:56]}  f5 {[%clk 0:02:10]} 13. gxf5 {[%clk 0:02:55]}  gxf5 {[%clk 0:02:10]} 14. exf5 {[%clk 0:02:50]}  Rxf5 {[%clk 0:02:05]} 15. h5 {[%clk 0:02:50]}  a3 {[%clk 0:01:54]} 16. b4 {[%clk 0:02:39]}  Na6 {[%clk 0:01:41]} 17. h6 {[%clk 0:02:13]}  Bf6 {[%clk 0:01:39]} 18. Bd3 {[%clk 0:01:52]}  Rf4 {[%clk 0:01:39]} 19. Ne4 {[%clk 0:01:44]}  Nb6 {[%clk 0:01:20]} 20. Bxf4 {[%clk 0:01:38]}  exf4 {[%clk 0:01:20]} 21. Qxf4 {[%clk 0:01:38]}  Bb2+ {[%clk 0:01:12]} 22. Kb1 {[%clk 0:01:38]}  Nxb4 {[%clk 0:01:07]} 23. Ne2 {[%clk 0:01:33]}  Nxd3 {[%clk 0:00:55]} 24. Rxd3 {[%clk 0:01:28]}  Nxc4 {[%clk 0:00:55]} 25. Rg1+ {[%clk 0:01:23]}  Kh8 {[%clk 0:00:55]} 26. Qf7 {[%clk 0:01:03]}  Bf5 {[%clk 0:00:07]} 27. Qxf5 {[%clk 0:00:59]}  Qe8 {[%clk 0:00:07]} 28. Ng5 {[%clk 0:00:46]}  Ne5 {[%clk 0:00:06]} 29. Qxh7# {[%clk 0:00:44]} 1-0


[Site "https://www.chess.com"]

[Event "Titled Tuesday Blitz June 20 Late 2023"]
[White "Olsson, William"]
[Black "Makhnev, Denis"]
[WhiteFideId "1741721"]
[BlackFideId "13707647"]
[WhiteElo "2197"]
[BlackElo "2515"]
[Result "0-1"]
[Round "5"]
[TimeControl "180+2"]
[Date "2023.06.20"]
[WhiteClock "0:02:33"]
[BlackClock "0:01:47"]
[Board "48"]

1. c4 {[%clk 0:02:59]}  e5 {[%clk 0:03:00]} 2. g3 {[%clk 0:02:59]}  c6 {[%clk 0:02:59]} 3. Nf3 {[%clk 0:02:56]}  e4 {[%clk 0:03:00]} 4. Nd4 {[%clk 0:02:56]}  d5 {[%clk 0:03:00]} 5. cxd5 {[%clk 0:02:56]}  Qxd5 {[%clk 0:03:01]} 6. Nc2 {[%clk 0:02:56]}  Nf6 {[%clk 0:03:02]} 7. Bg2 {[%clk 0:02:56]}  Be7 {[%clk 0:03:02]} 8. O-O {[%clk 0:02:56]}  Qh5 {[%clk 0:02:59]} 9. Nc3 {[%clk 0:02:56]}  Bh3 {[%clk 0:02:59]} 10. Ne3 {[%clk 0:02:54]}  Nbd7 {[%clk 0:02:52]} 11. d3 {[%clk 0:02:48]}  exd3 {[%clk 0:01:47]} 12. Qxd3 {[%clk 0:02:46]}  Ne5 {[%clk 0:01:47]} 13. Qe4 {[%clk 0:02:33]}  Nxe4 {[%clk 0:01:47]} 0-1


[Site "https://www.chess.com"]

[Event "Titled Tuesday Blitz June 20 Late 2023"]
[White "Bernabeu Lopez, Carlos Javier"]
[Black "Svane, Rasmus"]
[WhiteFideId "2235366"]
[BlackFideId "4657101"]
[WhiteElo "2344"]
[BlackElo "2601"]
[Result "1-0"]
[Round "5"]
[TimeControl "180+2"]
[Date "2023.06.20"]
[WhiteClock "0:00:58"]
[BlackClock "0:00:00"]
[Board "49"]

1. e4 {[%clk 0:03:00]}  c6 {[%clk 0:03:00]} 2. Nf3 {[%clk 0:02:57]}  d5 {[%clk 0:03:01]} 3. Nc3 {[%clk 0:02:58]}  dxe4 {[%clk 0:03:01]} 4. Nxe4 {[%clk 0:02:58]}  Nf6 {[%clk 0:03:02]} 5. Nxf6+ {[%clk 0:02:56]}  exf6 {[%clk 0:03:03]} 6. d4 {[%clk 0:02:56]}  Bd6 {[%clk 0:03:03]} 7. c3 {[%clk 0:02:57]}  O-O {[%clk 0:03:04]} 8. Be2 {[%clk 0:02:57]}  Re8 {[%clk 0:03:05]} 9. O-O {[%clk 0:02:58]}  Nd7 {[%clk 0:03:06]} 10. Re1 {[%clk 0:02:58]}  Nf8 {[%clk 0:03:07]} 11. h3 {[%clk 0:02:58]}  Ng6 {[%clk 0:03:07]} 12. Bd3 {[%clk 0:02:58]}  Be6 {[%clk 0:03:06]} 13. Bd2 {[%clk 0:02:57]}  Qd7 {[%clk 0:03:06]} 14. Bf1 {[%clk 0:02:55]}  Re7 {[%clk 0:03:01]} 15. b3 {[%clk 0:02:49]}  Rae8 {[%clk 0:03:00]} 16. Qc2 {[%clk 0:02:31]}  Bf5 {[%clk 0:02:59]} 17. Qc1 {[%clk 0:02:28]}  Be4 {[%clk 0:02:58]} 18. Be2 {[%clk 0:02:28]}  Bc7 {[%clk 0:02:54]} 19. Be3 {[%clk 0:02:27]}  Qd6 {[%clk 0:02:54]} 20. Kf1 {[%clk 0:02:26]}  Bxf3 {[%clk 0:02:39]} 21. Bxf3 {[%clk 0:02:27]}  Nh4 {[%clk 0:02:21]} 22. Qc2 {[%clk 0:01:54]}  Qh2 {[%clk 0:02:13]} 23. Ke2 {[%clk 0:01:52]}  Nxg2 {[%clk 0:01:50]} 24. Bxg2 {[%clk 0:01:51]}  Qxg2 {[%clk 0:01:48]} 25. Kd1 {[%clk 0:01:51]}  Qxh3 {[%clk 0:01:47]} 26. Kc1 {[%clk 0:01:33]}  Bf4 {[%clk 0:01:46]} 27. Kb2 {[%clk 0:01:31]}  Bxe3 {[%clk 0:01:43]} 28. Rh1 {[%clk 0:01:31]}  Bc1+ {[%clk 0:01:34]} 29. Raxc1 {[%clk 0:01:29]}  Qxh1 {[%clk 0:01:33]} 30. Rxh1 {[%clk 0:01:29]}  Re2 {[%clk 0:01:33]} 31. c4 {[%clk 0:01:23]}  Rxc2+ {[%clk 0:01:31]} 32. Kxc2 {[%clk 0:01:24]}  Re2+ {[%clk 0:01:32]} 33. Kc3 {[%clk 0:01:24]}  Rxf2 {[%clk 0:01:29]} 34. d5 {[%clk 0:01:24]}  cxd5 {[%clk 0:01:30]} 35. cxd5 {[%clk 0:01:25]}  Re2 {[%clk 0:01:03]} 36. d6 {[%clk 0:01:22]}  Re6 {[%clk 0:00:59]} 37. d7 {[%clk 0:01:21]}  Rc6+ {[%clk 0:00:53]} 38. Kb4 {[%clk 0:01:21]}  Rd6 {[%clk 0:00:50]} 39. Re1 {[%clk 0:01:21]}  g5 {[%clk 0:00:50]} 40. Re8+ {[%clk 0:01:20]}  Kg7 {[%clk 0:00:51]} 41. d8=Q {[%clk 0:01:21]}  Rxd8 {[%clk 0:00:51]} 42. Rxd8 {[%clk 0:01:22]}  h5 {[%clk 0:00:52]} 43. Kc3 {[%clk 0:01:18]}  h4 {[%clk 0:00:43]} 44. Kd3 {[%clk 0:01:19]}  Kg6 {[%clk 0:00:40]} 45. Ke4 {[%clk 0:01:17]}  f5+ {[%clk 0:00:36]} 46. Kf3 {[%clk 0:01:17]}  g4+ {[%clk 0:00:32]} 47. Kf4 {[%clk 0:01:17]}  h3 {[%clk 0:00:33]} 48. Rd6+ {[%clk 0:01:16]}  f6 {[%clk 0:00:29]} 49. a4 {[%clk 0:01:12]}  a5 {[%clk 0:00:29]} 50. Rd1 {[%clk 0:01:08]}  Kh5 {[%clk 0:00:27]} 51. Rd8 {[%clk 0:01:08]}  Kg6 {[%clk 0:00:26]} 52. Rh8 {[%clk 0:01:07]}  Kg7 {[%clk 0:00:23]} 53. Rh5 {[%clk 0:01:06]}  Kg6 {[%clk 0:00:22]} 54. Rh4 {[%clk 0:01:00]}  b6 {[%clk 0:00:16]} 55. Rh8 {[%clk 0:00:57]}  Kg7 {[%clk 0:00:17]} 56. Rh5 {[%clk 0:00:58]}  Kg6 {[%clk 0:00:00]} 57. Rh4 {[%clk 0:00:58]} 1-0


[Site "https://www.chess.com"]